[Event "Early-Titled-Tuesday-Blitz-April-16-2024"]
[Site "Chess.com"]
[Date "2024.04.16"]
[Round "5"]
[White "kyuotbi"]
[Black "LastHeroJr"]
[Result "0-1"]
[WhiteElo "2269"]
[BlackElo "2485"]
[TimeControl "180+1"]
[EndTime "8:53:11 PDT"]
[Termination "LastHeroJr won by resignation"]

1. e4 {[%clk 0:02:59.1]} 1... c6 {[%clk 0:02:59.2]} 2. d4 {[%clk 0:02:58.2]}
2... d5 {[%clk 0:03:00.1]} 3. Nc3 {[%clk 0:02:57.1]} 3... dxe4 {[%clk
0:02:59.5]} 4. Nxe4 {[%clk 0:02:56.7]} 4... Nf6 {[%clk 0:02:58.7]} 5. Nxf6+
{[%clk 0:02:56.3]} 5... exf6 {[%clk 0:02:58.3]} 6. Nf3 {[%clk 0:02:52.5]} 6...
Bd6 {[%clk 0:02:57.6]} 7. Be2 {[%clk 0:02:52.2]} 7... O-O {[%clk 0:02:57]} 8. c3
{[%clk 0:02:51.6]} 8... Bg4 {[%clk 0:02:56.2]} 9. O-O {[%clk 0:02:51]} 9... Re8
{[%clk 0:02:55.7]} 10. Be3 {[%clk 0:02:49.5]} 10... Nd7 {[%clk 0:02:54.1]} 11.
Nh4 {[%clk 0:02:45.4]} 11... Bxe2 {[%clk 0:02:53.4]} 12. Qxe2 {[%clk 0:02:45.3]}
12... Nf8 {[%clk 0:02:53.9]} 13. Nf5 {[%clk 0:02:42.7]} 13... Bc7 {[%clk
0:02:53.9]} 14. Qg4 {[%clk 0:02:41.2]} 14... g6 {[%clk 0:02:51.9]} 15. Nh6+
{[%clk 0:02:39.5]} 15... Kg7 {[%clk 0:02:51.1]} 16. Qh4 {[%clk 0:02:20.2]} 16...
f5 {[%clk 0:02:35.3]} 17. Nxf5+ {[%clk 0:01:57.5]} 17... gxf5 {[%clk 0:02:33.3]}
18. Qh6+ {[%clk 0:01:57.3]} 18... Kg8 {[%clk 0:02:32.5]} 19. Bg5 {[%clk
0:01:57.8]} 19... f6 {[%clk 0:02:24.1]} 20. Bxf6 {[%clk 0:01:55.5]} 20... Qd7
{[%clk 0:02:24.2]} 21. Rae1 {[%clk 0:01:46.5]} 21... Qf7 {[%clk 0:02:22]} 22.
Re3 {[%clk 0:01:39.8]} 22... Rxe3 {[%clk 0:02:21.3]} 23. fxe3 {[%clk 0:01:39.5]}
23... Qg6 {[%clk 0:02:21.8]} 24. Qh4 {[%clk 0:01:40]} 24... Re8 {[%clk
0:02:20.3]} 25. Rf3 {[%clk 0:01:31.4]} 25... Re4 {[%clk 0:02:17.5]} 26. Qh3
{[%clk 0:01:19]} 26... Qxf6 {[%clk 0:02:14.8]} 27. Rxf5 {[%clk 0:01:18.7]} 27...
Qe7 {[%clk 0:02:13]} 28. Qf3 {[%clk 0:01:14.7]} 28... Ng6 {[%clk 0:02:10.5]} 29.
Kf2 {[%clk 0:01:07.9]} 29... Nh4 {[%clk 0:02:10.2]} 0-1

[Event "Early-Titled-Tuesday-Blitz-April-16-2024"]
[Site "Chess.com"]
[Date "2024.04.16"]
[Round "5"]
[White "ozates"]
[Black "ViktoriyaTarasova"]
[Result "0-1"]
[WhiteElo "2521"]
[BlackElo "2364"]
[TimeControl "180+1"]
[EndTime "8:53:35 PDT"]
[Termination "ViktoriyaTarasova won by resignation"]

1. e4 {[%clk 0:02:55.4]} 1... e5 {[%clk 0:02:59.2]} 2. Nf3 {[%clk 0:02:53.8]}
2... Nc6 {[%clk 0:02:59.9]} 3. Bb5 {[%clk 0:02:54.4]} 3... Nf6 {[%clk
0:02:59.5]} 4. d3 {[%clk 0:02:54.3]} 4... Bc5 {[%clk 0:02:58]} 5. c3 {[%clk
0:02:49.7]} 5... O-O {[%clk 0:02:55]} 6. O-O {[%clk 0:02:49.6]} 6... Re8 {[%clk
0:02:54.1]} 7. Nbd2 {[%clk 0:02:49.6]} 7... a6 {[%clk 0:02:53]} 8. Ba4 {[%clk
0:02:49.4]} 8... d6 {[%clk 0:02:50.5]} 9. h3 {[%clk 0:02:47.4]} 9... b5 {[%clk
0:02:50]} 10. Bb3 {[%clk 0:02:46.8]} 10... Be6 {[%clk 0:02:49.3]} 11. Re1 {[%clk
0:02:47.4]} 11... h6 {[%clk 0:02:48]} 12. Nf1 {[%clk 0:02:46.6]} 12... Bxb3
{[%clk 0:02:47.8]} 13. axb3 {[%clk 0:02:47.5]} 13... Bb6 {[%clk 0:02:47.1]} 14.
Ng3 {[%clk 0:02:45.9]} 14... a5 {[%clk 0:02:46.5]} 15. Nh4 {[%clk 0:02:44.9]}
15... Ne7 {[%clk 0:02:45.8]} 16. Qf3 {[%clk 0:02:44]} 16... Ng6 {[%clk
0:02:43.1]} 17. Nhf5 {[%clk 0:02:40.9]} 17... Kh7 {[%clk 0:02:40.8]} 18. h4
{[%clk 0:02:33.8]} 18... Ng8 {[%clk 0:02:37.3]} 19. Nh5 {[%clk 0:02:18.4]} 19...
Nxh4 {[%clk 0:02:27.3]} 20. Nxh4 {[%clk 0:02:17.9]} 20... Qxh4 {[%clk
0:02:27.5]} 21. Qxf7 {[%clk 0:01:41.9]} 21... Re7 {[%clk 0:02:24.7]} 22. Qf3
{[%clk 0:01:32.7]} 22... g6 {[%clk 0:02:22]} 23. Ng3 {[%clk 0:01:28.6]} 23...
Kg7 {[%clk 0:02:21.6]} 24. Be3 {[%clk 0:01:24.3]} 24... Rf8 {[%clk 0:02:20.9]}
25. Qe2 {[%clk 0:01:20.4]} 25... Ref7 {[%clk 0:02:07.5]} 26. Bxb6 {[%clk
0:01:13.9]} 26... cxb6 {[%clk 0:02:07.1]} 27. Rf1 {[%clk 0:01:11.2]} 27... Nf6
{[%clk 0:02:04.6]} 0-1

[Event "Early-Titled-Tuesday-Blitz-April-16-2024"]
[Site "Chess.com"]
[Date "2024.04.16"]
[Round "5"]
[White "aanshnerurkar"]
[Black "SashaKuzhilniy"]
[Result "0-1"]
[WhiteElo "2387"]
[BlackElo "2645"]
[TimeControl "180+1"]
[EndTime "8:53:43 PDT"]
[Termination "SashaKuzhilniy won by resignation"]

1. e4 {[%clk 0:03:00.9]} 1... c6 {[%clk 0:02:57.3]} 2. d4 {[%clk 0:03:00.3]}
2... d5 {[%clk 0:02:57.7]} 3. e5 {[%clk 0:03:00.6]} 3... Bf5 {[%clk 0:02:57.2]}
4. Nd2 {[%clk 0:03:00.3]} 4... e6 {[%clk 0:02:56]} 5. Nb3 {[%clk 0:03:00.6]}
5... Nd7 {[%clk 0:02:55.4]} 6. Nf3 {[%clk 0:03:00.6]} 6... h6 {[%clk 0:02:53.6]}
7. Be2 {[%clk 0:03:00]} 7... Ne7 {[%clk 0:02:52.8]} 8. O-O {[%clk 0:03:00.1]}
8... Nc8 {[%clk 0:02:49]} 9. a4 {[%clk 0:02:54.7]} 9... Be7 {[%clk 0:02:48.9]}
10. a5 {[%clk 0:02:53.5]} 10... a6 {[%clk 0:02:42.6]} 11. c4 {[%clk 0:02:51.6]}
11... dxc4 {[%clk 0:02:32]} 12. Bxc4 {[%clk 0:02:51.4]} 12... O-O {[%clk
0:02:28.6]} 13. Be3 {[%clk 0:02:51.1]} 13... Na7 {[%clk 0:02:26.6]} 14. Qe2
{[%clk 0:02:50.3]} 14... Nb5 {[%clk 0:02:25.6]} 15. Rfd1 {[%clk 0:02:46.2]}
15... Be4 {[%clk 0:02:21.1]} 16. Ne1 {[%clk 0:02:45.3]} 16... Bd5 {[%clk
0:02:21]} 17. Nd2 {[%clk 0:02:31.6]} 17... Bb4 {[%clk 0:02:13.3]} 18. Bd3 {[%clk
0:02:31.6]} 18... Bxa5 {[%clk 0:02:08.8]} 19. f4 {[%clk 0:02:30.1]} 19... Bb6
{[%clk 0:02:05.3]} 20. Nef3 {[%clk 0:02:27.4]} 20... c5 {[%clk 0:01:42.5]} 21.
dxc5 {[%clk 0:02:13.4]} 21... Nxc5 {[%clk 0:01:37.3]} 22. Bxb5 {[%clk
0:02:12.7]} 22... axb5 {[%clk 0:01:37.8]} 23. Rxa8 {[%clk 0:02:12.5]} 23... Qxa8
{[%clk 0:01:37.3]} 24. Qxb5 {[%clk 0:02:12.1]} 24... Qa7 {[%clk 0:01:32.4]} 25.
Nc4 {[%clk 0:02:11.3]} 25... Bxc4 {[%clk 0:01:28]} 26. Qxc4 {[%clk 0:02:10.9]}
26... Na4 {[%clk 0:01:13]} 27. Bxb6 {[%clk 0:01:44.7]} 27... Qxb6+ {[%clk
0:01:13.9]} 28. Qd4 {[%clk 0:01:44.8]} 28... Rd8 {[%clk 0:01:12.9]} 29. Qxb6
{[%clk 0:01:40.1]} 29... Rxd1+ {[%clk 0:01:11.9]} 30. Kf2 {[%clk 0:01:38.1]}
30... Nxb6 {[%clk 0:01:12.8]} 31. Ke2 {[%clk 0:01:37.8]} 31... Rb1 {[%clk
0:01:11.3]} 32. Nd2 {[%clk 0:01:38]} 32... Rxb2 {[%clk 0:01:10.2]} 33. Kd3
{[%clk 0:01:37.5]} 33... Rxd2+ {[%clk 0:01:10.3]} 34. Kxd2 {[%clk 0:01:37.4]}
34... Nd5 {[%clk 0:01:10.4]} 35. g3 {[%clk 0:01:37.6]} 35... g5 {[%clk
0:01:10.9]} 0-1

[Event "Early-Titled-Tuesday-Blitz-April-16-2024"]
[Site "Chess.com"]
[Date "2024.04.16"]
[Round "5"]
[White "BashirliSaadat"]
[Black "WilsonPalencia21"]
[Result "0-1"]
[WhiteElo "2339"]
[BlackElo "2590"]
[TimeControl "180+1"]
[EndTime "8:54:02 PDT"]
[Termination "WilsonPalencia21 won by resignation"]

1. d4 {[%clk 0:03:00.9]} 1... Nf6 {[%clk 0:02:52.2]} 2. e3 {[%clk 0:03:00.7]}
2... c5 {[%clk 0:02:50.8]} 3. c3 {[%clk 0:02:59.6]} 3... g6 {[%clk 0:02:45.8]}
4. f4 {[%clk 0:02:58.5]} 4... Bg7 {[%clk 0:02:45.7]} 5. Bd3 {[%clk 0:02:56.8]}
5... O-O {[%clk 0:02:45.7]} 6. Nf3 {[%clk 0:02:56]} 6... d5 {[%clk 0:02:46]} 7.
O-O {[%clk 0:02:55.6]} 7... Nc6 {[%clk 0:02:46.5]} 8. Nbd2 {[%clk 0:02:54]} 8...
Nd7 {[%clk 0:02:47]} 9. Qe2 {[%clk 0:02:51.3]} 9... f6 {[%clk 0:02:47.1]} 10. e4
{[%clk 0:02:41.7]} 10... dxe4 {[%clk 0:02:45.6]} 11. Nxe4 {[%clk 0:02:37.5]}
11... cxd4 {[%clk 0:02:45.3]} 12. cxd4 {[%clk 0:02:36.1]} 12... Nb6 {[%clk
0:02:42.9]} 13. Be3 {[%clk 0:02:33.3]} 13... Bg4 {[%clk 0:02:40.6]} 14. Qf2
{[%clk 0:02:22.3]} 14... Bxf3 {[%clk 0:02:39.2]} 15. gxf3 {[%clk 0:02:18.5]}
15... e5 {[%clk 0:02:30.1]} 16. fxe5 {[%clk 0:02:00.4]} 16... fxe5 {[%clk
0:02:28.8]} 17. Rad1 {[%clk 0:01:49.2]} 17... exd4 {[%clk 0:02:26.4]} 18. Bg5
{[%clk 0:01:48.6]} 18... Qd5 {[%clk 0:02:20.6]} 19. b3 {[%clk 0:01:42.4]} 19...
Kh8 {[%clk 0:02:19.3]} 20. Qh4 {[%clk 0:01:33.2]} 20... Ne5 {[%clk 0:02:15.1]}
21. Be2 {[%clk 0:01:27.7]} 21... d3 {[%clk 0:02:07.2]} 22. Nf6 {[%clk
0:01:18.9]} 22... Qc5+ {[%clk 0:01:51.7]} 23. Kh1 {[%clk 0:01:13.4]} 23... Rxf6
{[%clk 0:01:51.6]} 24. Bxf6 {[%clk 0:00:28.4]} 24... dxe2 {[%clk 0:01:47]} 25.
Rd7 {[%clk 0:00:09.5]} 0-1

[Event "Early-Titled-Tuesday-Blitz-April-16-2024"]
[Site "Chess.com"]
[Date "2024.04.16"]
[Round "5"]
[White "lcmil"]
[Black "Kildepiotr"]
[Result "0-1"]
[WhiteElo "2502"]
[BlackElo "2702"]
[TimeControl "180+1"]
[EndTime "8:54:14 PDT"]
[Termination "Kildepiotr won by resignation"]

1. e4 {[%clk 0:03:00.9]} 1... g6 {[%clk 0:03:00.3]} 2. h4 {[%clk 0:02:59]} 2...
h5 {[%clk 0:03:00.2]} 3. d4 {[%clk 0:02:58.1]} 3... Bg7 {[%clk 0:03:00.6]} 4.
Nc3 {[%clk 0:02:56.8]} 4... c6 {[%clk 0:03:01.1]} 5. Be3 {[%clk 0:02:52.8]} 5...
d5 {[%clk 0:03:01.3]} 6. f3 {[%clk 0:02:51.3]} 6... dxe4 {[%clk 0:03:00.8]} 7.
fxe4 {[%clk 0:02:50.3]} 7... Nf6 {[%clk 0:03:01.7]} 8. Qd2 {[%clk 0:02:46.3]}
8... Ng4 {[%clk 0:03:01.6]} 9. Nf3 {[%clk 0:02:36.9]} 9... Nxe3 {[%clk
0:03:01.4]} 10. Qxe3 {[%clk 0:02:37.8]} 10... Bg4 {[%clk 0:03:01]} 11. e5 {[%clk
0:02:33.9]} 11... Nd7 {[%clk 0:02:58.1]} 12. Ne4 {[%clk 0:02:26]} 12... Nb6
{[%clk 0:02:54.9]} 13. O-O-O {[%clk 0:01:58.6]} 13... Nd5 {[%clk 0:02:47.7]} 14.
Qb3 {[%clk 0:01:53.5]} 14... Qb6 {[%clk 0:02:45.3]} 15. Kb1 {[%clk 0:01:44.1]}
15... Qxb3 {[%clk 0:02:42.2]} 16. axb3 {[%clk 0:01:45]} 16... O-O-O {[%clk
0:02:36.6]} 17. Neg5 {[%clk 0:01:32.9]} 17... Rhf8 {[%clk 0:02:34.3]} 18. Re1
{[%clk 0:01:28.1]} 18... f6 {[%clk 0:02:30.8]} 19. exf6 {[%clk 0:01:23.8]} 19...
exf6 {[%clk 0:02:31.7]} 20. Ne4 {[%clk 0:01:14.2]} 20... Kc7 {[%clk 0:02:18.5]}
21. Nc3 {[%clk 0:01:04.9]} 21... Nf4 {[%clk 0:02:10.7]} 22. Ne2 {[%clk
0:00:50.1]} 22... Ne6 {[%clk 0:02:03]} 23. c3 {[%clk 0:00:47.9]} 23... Rfe8
{[%clk 0:01:56.9]} 24. Ng3 {[%clk 0:00:41.3]} 24... Nf4 {[%clk 0:01:55.5]} 25.
Bc4 {[%clk 0:00:39]} 25... Nxg2 {[%clk 0:01:52.5]} 26. Rxe8 {[%clk 0:00:38]}
26... Rxe8 {[%clk 0:01:53.4]} 27. Nd2 {[%clk 0:00:37.8]} 27... Bh6 {[%clk
0:01:42.8]} 28. Nge4 {[%clk 0:00:35.1]} 28... Bf5 {[%clk 0:01:41]} 29. Bd3
{[%clk 0:00:34.1]} 29... Nf4 {[%clk 0:01:39.8]} 30. Bc2 {[%clk 0:00:34.4]} 30...
Nd5 {[%clk 0:01:30.5]} 31. Re1 {[%clk 0:00:25.6]} 31... Bxd2 {[%clk 0:01:28.9]}
0-1

[Event "Early-Titled-Tuesday-Blitz-April-16-2024"]
[Site "Chess.com"]
[Date "2024.04.16"]
[Round "5"]
[White "Tol_Tol"]
[Black "LeninGuerra"]
[Result "0-1"]
[WhiteElo "2422"]
[BlackElo "2772"]
[TimeControl "180+1"]
[EndTime "8:54:17 PDT"]
[Termination "LeninGuerra won on time"]

1. d4 {[%clk 0:02:59.6]} 1... Nf6 {[%clk 0:02:59.3]} 2. c4 {[%clk 0:03:00]} 2...
c5 {[%clk 0:02:59.5]} 3. Nc3 {[%clk 0:03:00.8]} 3... cxd4 {[%clk 0:02:59.4]} 4.
Qxd4 {[%clk 0:03:00.5]} 4... Nc6 {[%clk 0:02:59.9]} 5. Qd2 {[%clk 0:03:01]} 5...
e5 {[%clk 0:03:00.3]} 6. e3 {[%clk 0:02:57.9]} 6... Bb4 {[%clk 0:02:59.2]} 7. a3
{[%clk 0:02:55.3]} 7... Bxc3 {[%clk 0:02:58.9]} 8. Qxc3 {[%clk 0:02:55.8]} 8...
d5 {[%clk 0:02:56.4]} 9. cxd5 {[%clk 0:02:54.4]} 9... Qxd5 {[%clk 0:02:55.5]}
10. Nf3 {[%clk 0:02:48.5]} 10... O-O {[%clk 0:02:49.5]} 11. Bc4 {[%clk 0:02:48]}
11... Qe4 {[%clk 0:02:48]} 12. O-O {[%clk 0:02:38.1]} 12... Bg4 {[%clk
0:02:42.6]} 13. Nd2 {[%clk 0:01:35.6]} 13... Qg6 {[%clk 0:02:41.1]} 14. f3
{[%clk 0:01:32.6]} 14... Bh3 {[%clk 0:02:39.7]} 15. Rf2 {[%clk 0:01:33]} 15...
Rfd8 {[%clk 0:02:36.2]} 16. Nf1 {[%clk 0:01:21.9]} 16... Rac8 {[%clk 0:02:34.6]}
17. Qc2 {[%clk 0:00:57.4]} 17... Bf5 {[%clk 0:02:27.5]} 18. e4 {[%clk
0:00:57.2]} 18... Nd4 {[%clk 0:02:04.4]} 19. Qd3 {[%clk 0:00:25.7]} 19... Bh3
{[%clk 0:01:48.2]} 20. Ba2 {[%clk 0:00:11.8]} 20... Nc2 {[%clk 0:01:41]} 21.
Rxc2 {[%clk 0:00:07.9]} 21... Rxd3 {[%clk 0:01:40.9]} 22. Rxc8+ {[%clk
0:00:07.5]} 22... Bxc8 {[%clk 0:01:41.7]} 23. Be3 {[%clk 0:00:04.4]} 23... h5
{[%clk 0:01:37.4]} 0-1

[Event "Early-Titled-Tuesday-Blitz-April-16-2024"]
[Site "Chess.com"]
[Date "2024.04.16"]
[Round "5"]
[White "DonJuanEGenaro"]
[Black "InitiatingASC"]
[Result "0-1"]
[WhiteElo "2005"]
[BlackElo "2357"]
[TimeControl "180+1"]
[EndTime "8:54:19 PDT"]
[Termination "InitiatingASC won by resignation"]

1. d4 {[%clk 0:02:58.3]} 1... d5 {[%clk 0:02:53.1]} 2. Nf3 {[%clk 0:02:57.5]}
2... e6 {[%clk 0:02:51.8]} 3. g3 {[%clk 0:02:55.5]} 3... c5 {[%clk 0:02:51.5]}
4. Bg2 {[%clk 0:02:53.9]} 4... Nc6 {[%clk 0:02:51.1]} 5. O-O {[%clk 0:02:52.7]}
5... Nf6 {[%clk 0:02:51.4]} 6. c4 {[%clk 0:02:52.6]} 6... Be7 {[%clk 0:02:47.5]}
7. cxd5 {[%clk 0:02:50.2]} 7... exd5 {[%clk 0:02:47.4]} 8. Nc3 {[%clk
0:02:49.9]} 8... O-O {[%clk 0:02:47.5]} 9. Bg5 {[%clk 0:02:49.5]} 9... c4 {[%clk
0:02:48]} 10. Ne5 {[%clk 0:02:46.6]} 10... Be6 {[%clk 0:02:47.7]} 11. f4 {[%clk
0:02:43.2]} 11... Ng4 {[%clk 0:02:47.5]} 12. Bxe7 {[%clk 0:02:18.1]} 12... Nxe7
{[%clk 0:02:40.3]} 13. Nxg4 {[%clk 0:02:16.2]} 13... Bxg4 {[%clk 0:02:40.1]} 14.
h3 {[%clk 0:02:15.7]} 14... Be6 {[%clk 0:02:26.7]} 15. g4 {[%clk 0:02:03]} 15...
f5 {[%clk 0:02:25.9]} 16. e3 {[%clk 0:01:58.1]} 16... Qd7 {[%clk 0:02:18.1]} 17.
Bf3 {[%clk 0:01:51.6]} 17... b5 {[%clk 0:02:12.5]} 18. a3 {[%clk 0:01:48.5]}
18... a5 {[%clk 0:02:12.1]} 19. b3 {[%clk 0:01:45.6]} 19... b4 {[%clk
0:02:08.6]} 20. Na4 {[%clk 0:01:45.4]} 20... c3 {[%clk 0:02:03.4]} 21. Nc5
{[%clk 0:01:44.5]} 21... Qd6 {[%clk 0:01:56.2]} 22. Qd3 {[%clk 0:01:37.9]} 22...
Rfc8 {[%clk 0:01:41]} 23. Nxe6 {[%clk 0:01:33.3]} 23... Qxe6 {[%clk 0:01:39.6]}
24. gxf5 {[%clk 0:01:33.1]} 24... Nxf5 {[%clk 0:01:24.8]} 25. Rfe1 {[%clk
0:01:31.7]} 25... Nd6 {[%clk 0:01:20.8]} 26. Bg4 {[%clk 0:01:26.3]} 26... Qe4
{[%clk 0:01:16.5]} 27. Qxe4 {[%clk 0:01:24.6]} 27... Nxe4 {[%clk 0:01:15.9]} 28.
Bxc8 {[%clk 0:01:24.3]} 28... Rxc8 {[%clk 0:01:15.2]} 29. axb4 {[%clk
0:01:24.3]} 29... axb4 {[%clk 0:01:15.2]} 30. Ra5 {[%clk 0:01:23.8]} 30... Nd2
{[%clk 0:01:09.2]} 31. Rxd5 {[%clk 0:01:16.9]} 31... Nf3+ {[%clk 0:01:01]} 32.
Kf2 {[%clk 0:01:16.6]} 32... Nxe1 {[%clk 0:01:01.2]} 33. Ra5 {[%clk 0:00:58.1]}
0-1

[Event "Early-Titled-Tuesday-Blitz-April-16-2024"]
[Site "Chess.com"]
[Date "2024.04.16"]
[Round "5"]
[White "mr_gustavo"]
[Black "GHANDEEVAM2003"]
[Result "0-1"]
[WhiteElo "2707"]
[BlackElo "3015"]
[TimeControl "180+1"]
[EndTime "8:54:27 PDT"]
[Termination "GHANDEEVAM2003 won by resignation"]

1. c4 {[%clk 0:03:00.9]} 1... d6 {[%clk 0:03:00.9]} 2. d4 {[%clk 0:02:58.6]}
2... g6 {[%clk 0:03:01.8]} 3. Nf3 {[%clk 0:02:57]} 3... Bg7 {[%clk 0:03:02.4]}
4. g3 {[%clk 0:02:57.4]} 4... Nc6 {[%clk 0:03:02.8]} 5. Bg2 {[%clk 0:02:57.3]}
5... h5 {[%clk 0:03:03.2]} 6. Nc3 {[%clk 0:02:56.1]} 6... h4 {[%clk 0:03:02.3]}
7. gxh4 {[%clk 0:02:49.9]} 7... Bg4 {[%clk 0:02:59.7]} 8. d5 {[%clk 0:02:25.5]}
8... Bxf3 {[%clk 0:02:57.9]} 9. exf3 {[%clk 0:02:25.1]} 9... Ne5 {[%clk
0:02:58.8]} 10. f4 {[%clk 0:02:19.6]} 10... Nd7 {[%clk 0:02:58.2]} 11. Be3
{[%clk 0:02:06.5]} 11... Rxh4 {[%clk 0:02:56]} 12. Qd2 {[%clk 0:01:59.3]} 12...
Nh6 {[%clk 0:02:53.9]} 13. O-O-O {[%clk 0:01:48.6]} 13... Nf5 {[%clk 0:02:52.7]}
14. Ne4 {[%clk 0:01:49.2]} 14... Nf6 {[%clk 0:02:46.2]} 15. Ng3 {[%clk
0:01:47.4]} 15... Qd7 {[%clk 0:02:45.1]} 16. c5 {[%clk 0:01:41.2]} 16... Nxe3
{[%clk 0:02:31.5]} 17. fxe3 {[%clk 0:01:33.5]} 17... dxc5 {[%clk 0:02:31.3]} 18.
Kb1 {[%clk 0:01:26.7]} 18... Qd6 {[%clk 0:02:21.3]} 19. Rdf1 {[%clk 0:01:08.9]}
19... O-O-O {[%clk 0:02:07.7]} 20. Qa5 {[%clk 0:00:45.1]} 20... Qb6 {[%clk
0:02:01.9]} 21. Qxb6 {[%clk 0:00:44.3]} 21... axb6 {[%clk 0:02:02.8]} 22. e4
{[%clk 0:00:44.9]} 22... Ng4 {[%clk 0:02:00.1]} 23. Rf3 {[%clk 0:00:21]} 23...
Nxh2 {[%clk 0:01:54.4]} 24. Ra3 {[%clk 0:00:20.2]} 24... Kb8 {[%clk 0:01:55]}
25. e5 {[%clk 0:00:17.4]} 25... Rdh8 {[%clk 0:01:54.9]} 26. Ne2 {[%clk
0:00:15.4]} 26... Ng4 {[%clk 0:01:52.2]} 27. Rxh4 {[%clk 0:00:14.5]} 27... Rxh4
{[%clk 0:01:53.1]} 28. Bf3 {[%clk 0:00:14.5]} 28... Nh6 {[%clk 0:01:49.2]} 29.
Rb3 {[%clk 0:00:10]} 29... Nf5 {[%clk 0:01:48.9]} 30. Kc2 {[%clk 0:00:09.5]}
30... Bh6 {[%clk 0:01:47.5]} 31. Kd3 {[%clk 0:00:05.9]} 31... Bxf4 {[%clk
0:01:47.2]} 32. Nxf4 {[%clk 0:00:05.6]} 32... Rxf4 {[%clk 0:01:48.1]} 33. Be4
{[%clk 0:00:06.5]} 33... c4+ {[%clk 0:01:48.4]} 0-1

[Event "Early-Titled-Tuesday-Blitz-April-16-2024"]
[Site "Chess.com"]
[Date "2024.04.16"]
[Round "5"]
[White "Mikhail_Golubev"]
[Black "Fernando_Offermann"]
[Result "0-1"]
[WhiteElo "2588"]
[BlackElo "2460"]
[TimeControl "180+1"]
[EndTime "8:54:43 PDT"]
[Termination "Fernando_Offermann won on time"]

1. e4 {[%clk 0:02:54.5]} 1... c5 {[%clk 0:03:00]} 2. Nf3 {[%clk 0:02:53.8]} 2...
d6 {[%clk 0:03:00.1]} 3. d4 {[%clk 0:02:54]} 3... cxd4 {[%clk 0:03:00.3]} 4.
Nxd4 {[%clk 0:02:54.9]} 4... Nf6 {[%clk 0:03:00.4]} 5. Nc3 {[%clk 0:02:55.6]}
5... a6 {[%clk 0:03:00.8]} 6. Bc4 {[%clk 0:02:55.3]} 6... g6 {[%clk 0:03:01.1]}
7. f3 {[%clk 0:02:46.1]} 7... h5 {[%clk 0:02:59.4]} 8. Be3 {[%clk 0:02:40.8]}
8... b5 {[%clk 0:02:59.4]} 9. Bb3 {[%clk 0:02:40.1]} 9... Bb7 {[%clk 0:02:59.3]}
10. Qd2 {[%clk 0:02:29.3]} 10... Nbd7 {[%clk 0:02:58.6]} 11. O-O-O {[%clk
0:02:29]} 11... Rc8 {[%clk 0:02:58.1]} 12. h3 {[%clk 0:02:20.1]} 12... h4 {[%clk
0:02:54.5]} 13. Kb1 {[%clk 0:02:10.8]} 13... Ne5 {[%clk 0:02:54.4]} 14. f4
{[%clk 0:02:01.4]} 14... Nc4 {[%clk 0:02:54.2]} 15. Bxc4 {[%clk 0:01:57.2]}
15... Rxc4 {[%clk 0:02:54.3]} 16. e5 {[%clk 0:01:50.6]} 16... Ne4 {[%clk
0:02:54.3]} 17. Nxe4 {[%clk 0:01:43.2]} 17... Bxe4 {[%clk 0:02:54.4]} 18. Rhe1
{[%clk 0:01:09.7]} 18... Qc7 {[%clk 0:02:49.4]} 19. exd6 {[%clk 0:00:54.5]}
19... Qxd6 {[%clk 0:02:48.3]} 20. Bg1 {[%clk 0:00:49.5]} 20... f5 {[%clk
0:02:44.5]} 21. Rxe4 {[%clk 0:00:33.9]} 21... fxe4 {[%clk 0:02:43]} 22. Qe2
{[%clk 0:00:34.5]} 22... Qd5 {[%clk 0:02:30.4]} 23. Nb3 {[%clk 0:00:14.6]} 23...
Qa8 {[%clk 0:02:26.7]} 24. Qd2 {[%clk 0:00:10.1]} 24... Rh5 {[%clk 0:02:23.7]}
25. Qd7+ {[%clk 0:00:06.3]} 25... Kf7 {[%clk 0:02:23.7]} 26. Nd4 {[%clk
0:00:05.4]} 26... Qd5 {[%clk 0:02:19.6]} 27. Qg4 {[%clk 0:00:01.5]} 27... Bg7
{[%clk 0:02:05.6]} 28. f5 {[%clk 0:00:01.9]} 28... Rxf5 {[%clk 0:02:00.2]} 29.
Nxf5 {[%clk 0:00:02.3]} 29... Qxf5 {[%clk 0:02:00.6]} 30. Qe2 {[%clk 0:00:02.4]}
30... Qe5 {[%clk 0:01:56.2]} 31. c3 {[%clk 0:00:02.3]} 31... Rc6 {[%clk
0:01:49.7]} 32. Bd4 {[%clk 0:00:02.3]} 32... Qe6 {[%clk 0:01:39.3]} 33. Bxg7
{[%clk 0:00:02.4]} 33... Kxg7 {[%clk 0:01:38.8]} 34. Re1 {[%clk 0:00:03.1]}
34... Qf5 {[%clk 0:01:35.1]} 35. Qxe4 {[%clk 0:00:03]} 35... Re6 {[%clk
0:01:35.6]} 0-1

[Event "Early-Titled-Tuesday-Blitz-April-16-2024"]
[Site "Chess.com"]
[Date "2024.04.16"]
[Round "5"]
[White "SmirnovTimofey2000"]
[Black "Mazarini41"]
[Result "1-0"]
[WhiteElo "1978"]
[BlackElo "2340"]
[TimeControl "180+1"]
[EndTime "8:54:45 PDT"]
[Termination "SmirnovTimofey2000 won by resignation"]

1. d4 {[%clk 0:03:00.9]} 1... Nf6 {[%clk 0:02:55.3]} 2. Bf4 {[%clk 0:03:00.4]}
2... c5 {[%clk 0:02:52.4]} 3. c3 {[%clk 0:02:59.9]} 3... Nc6 {[%clk 0:02:51.9]}
4. e3 {[%clk 0:02:59.7]} 4... d6 {[%clk 0:02:51.5]} 5. Nd2 {[%clk 0:02:59]} 5...
g6 {[%clk 0:02:51.4]} 6. h3 {[%clk 0:02:57.7]} 6... Bg7 {[%clk 0:02:51.6]} 7.
Ngf3 {[%clk 0:02:57.7]} 7... O-O {[%clk 0:02:51.8]} 8. Be2 {[%clk 0:02:57.7]}
8... Nh5 {[%clk 0:02:49]} 9. Bh2 {[%clk 0:02:57]} 9... Re8 {[%clk 0:02:39.4]}
10. O-O {[%clk 0:02:56.1]} 10... e5 {[%clk 0:02:39.5]} 11. dxe5 {[%clk
0:02:46.6]} 11... Nxe5 {[%clk 0:02:36.2]} 12. Nxe5 {[%clk 0:02:46.6]} 12... Bxe5
{[%clk 0:02:35.3]} 13. Bxh5 {[%clk 0:02:43.1]} 13... Bxh2+ {[%clk 0:02:34.5]}
14. Kxh2 {[%clk 0:02:43]} 14... gxh5 {[%clk 0:02:26.7]} 15. Qxh5 {[%clk
0:02:40.4]} 15... Re5 {[%clk 0:02:25]} 16. Qf3 {[%clk 0:02:21.9]} 16... Bf5
{[%clk 0:01:59.1]} 17. e4 {[%clk 0:02:08.3]} 17... Bg6 {[%clk 0:01:39.6]} 18.
Qg4 {[%clk 0:01:57.5]} 18... Rg5 {[%clk 0:01:17.2]} 19. Qf3 {[%clk 0:01:52.3]}
19... Qe7 {[%clk 0:01:11]} 20. Rae1 {[%clk 0:01:43]} 20... Qe5+ {[%clk 0:01:09]}
21. Kh1 {[%clk 0:01:35.7]} 21... b5 {[%clk 0:01:05.5]} 22. Qd3 {[%clk
0:01:24.5]} 22... a6 {[%clk 0:00:46.3]} 23. f4 {[%clk 0:01:20.9]} 23... Qf6
{[%clk 0:00:16.2]} 24. fxg5 {[%clk 0:01:17.4]} 24... Qxg5 {[%clk 0:00:17.1]} 25.
Qd5 {[%clk 0:01:13.9]} 25... Re8 {[%clk 0:00:13.2]} 26. Qxg5 {[%clk 0:01:13.3]}
1-0